{"text_format":"1","workbook":"xlsx","n_sheets":48,"sheets":["Summary","Excessive Table Use","Large Page Size","Large ViewState Code","Multiple H1 Tags","Multiple Meta Description","Missing Title Tags","URL Special Characters","Embedded Scripts","Click Depth","Short Meta Descriptions","Missing Meta Description","Missing H1 Tag","Duplicate H1 Tags","Duplicate Title Tags","Duplicate Meta Description","Long Meta Keywords","Long Title Tags","Long Meta Descriptions","URL Appended Parameters","404s","Multiple Title Tags","303s","400s","401s","403s","500s","501s","503s","504s","505s","Multiple Meta Keywords","URL Plus Signs","Deep Directory Depth","Missing Meta Keywords","Short Title Tags","Duplicate Meta Keywords","302s","URL Capitalization","Short Meta Keywords","URL Hyphens","301s","Short H1 Tags","Long H1 Tags","URL Underscores","Remaining Urls_1","Spidered Urls_1","Report Data"],"not_rendered":{"charts":5,"images":1,"macros":1,"external_links":0,"defined_names":2,"comments":2,"pivot_tables":0},"unopened":[],"bounds":{"document_bytes":16777216,"sheet_cells":100000,"rows_first":2000,"rows_last":500,"rows_between":2000,"halvings":0,"cell_chars":16384,"cell_head_chars":4096},"cells_cut":0,"cells_raw":0,"read":"whole","date_system":"1900"}

{"sheet":"Summary","index":0,"n_rows":381,"n_cols":11,"rows_kept":381,"cut":false,"hidden":false,"merged":[[41,1,142,1],[160,1,261,1],[279,1,380,1],[41,3,41,7],[160,3,160,7],[279,3,279,7]]}
[]
[]
[null,"Architecture Diagnostic Report (ADR)"]
[null,"http://ec2-184-72-66-227.compute-1.amazonaws.com/"]
[]
[null,"Issue Summary",null,null,null,null,null,null,"Severity Summary"]
[null,"Percentages",null,null,null,"All Issues by Severity",null,null,"Percentages"]
[null,null,null,null,null,"Severity","Count"]
[null,null,null,null,null,"Critical",{"$f":"I143","v":0}]
[null,null,null,null,null,"Warning",{"$f":"I262","v":0}]
[null,null,null,null,null,"Info",{"$f":"I381","v":0}]
[null,null,null,null,null,"Total Issues",{"$f":"SUM(G9:G11)","v":0}]
[]
[]
[]
[]
[]
[]
[null,null,null,null,null,"URL Summary"]
[null,null,null,null,null,"Type","# of URLs"]
[null,null,null,null,null,"Issues",{"$f":"'Report Data'!L8","v":-6878}]
[null,null,null,null,null,"Non-issues",{"$f":"'Report Data'!L9","v":6878}]
[null,null,null,null,null,"Total URLs Crawled",{"$f":"SUM(G21:G22)","v":0}]
[]
[null,"Issue Breakdown by Severity"]
[null,"Critical"]
[]
[]
[]
[]
[]
[]
[]
[]
[]
[]
[]
[]
[]
[]
[]
[null,"CRITICAL","Tab Names","Long Desc",null,null,null,null,"Issue Count","Critical %","Total Issue %"]
[null,null,0,{"$error":"#N/A"},null,null,null,null,{"$error":"#N/A"},{"$f":"I43/$I$143","v":{"$error":"#N/A"}},{"$f":"IF($G$12<>0,I43/$G$12,0)","v":0}]
[null,null,0,{"$error":"#N/A"},null,null,null,null,{"$error":"#N/A"},{"$error":"#N/A"},0]
[null,null,0,{"$error":"#N/A"},null,null,null,null,{"$error":"#N/A"},{"$error":"#N/A"},0]
[null,null,0,{"$error":"#N/A"},null,null,null,null,{"$error":"#N/A"},{"$error":"#N/A"},0]
[null,null,0,{"$error":"#N/A"},null,null,null,null,{"$error":"#N/A"},{"$error":"#N/A"},0]
[null,null,0,{"$error":"#N/A"},null,null,null,null,{"$error":"#N/A"},{"$error":"#N/A"},0]
[null,null,0,{"$error":"#N/A"},null,null,null,null,{"$error":"#N/A"},{"$error":"#N/A"},0]
[null,null,0,{"$error":"#N/A"},null,null,null,null,{"$error":"#N/A"},{"$error":"#N/A"},0]
[null,null,0,{"$error":"#N/A"},null,null,null,null,{"$error":"#N/A"},{"$error":"#N/A"},0]
[null,null,0,{"$error":"#N/A"},null,null,null,null,{"$error":"#N/A"},{"$error":"#N/A"},0]
[null,null,0,{"$error":"#N/A"},null,null,null,null,{"$error":"#N/A"},{"$error":"#N/A"},0]
[null,null,0,{"$error":"#N/A"},null,null,null,null,{"$error":"#N/A"},{"$error":"#N/A"},0]
[null,null,0,{"$error":"#N/A"},null,null,null,null,{"$error":"#N/A"},{"$error":"#N/A"},0]
[null,null,0,{"$error":"#N/A"},null,null,null,null,{"$error":"#N/A"},{"$error":"#N/A"},0]
[null,null,0,{"$error":"#N/A"},null,null,null,null,{"$error":"#N/A"},{"$f":"I57/$I$143","v":{"$error":"#N/A"}},{"$f":"IF($G$12<>0,I57/$G$12,0)","v":0}]
[null,null,0,{"$error":"#N/A"},null,null,null,null,{"$error":"#N/A"},{"$error":"#N/A"},0]
[null,null,0,{"$error":"#N/A"},null,null,null,null,{"$error":"#N/A"},{"$error":"#N/A"},0]
[null,null,0,{"$error":"#N/A"},null,null,null,null,{"$error":"#N/A"},{"$error":"#N/A"},0]
[null,null,0,{"$error":"#N/A"},null,null,null,null,{"$error":"#N/A"},{"$error":"#N/A"},0]
[null,null,0,{"$error":"#N/A"},null,null,null,null,{"$error":"#N/A"},{"$error":"#N/A"},0]
[null,null,0,{"$error":"#N/A"},null,null,null,null,{"$error":"#N/A"},{"$error":"#N/A"},0]
[null,null,0,{"$error":"#N/A"},null,null,null,null,{"$error":"#N/A"},{"$error":"#N/A"},0]
[null,null,0,{"$error":"#N/A"},null,null,null,null,{"$error":"#N/A"},{"$error":"#N/A"},0]
[null,null,0,{"$error":"#N/A"},null,null,null,null,{"$error":"#N/A"},{"$error":"#N/A"},0]
[null,null,0,{"$error":"#N/A"},null,null,null,null,{"$error":"#N/A"},{"$error":"#N/A"},0]
[null,null,0,{"$error":"#N/A"},null,null,null,null,{"$error":"#N/A"},{"$error":"#N/A"},0]
[null,null,0,{"$error":"#N/A"},null,null,null,null,{"$error":"#N/A"},{"$error":"#N/A"},0]
[null,null,0,{"$error":"#N/A"},null,null,null,null,{"$error":"#N/A"},{"$error":"#N/A"},0]
[null,null,0,{"$error":"#N/A"},null,null,null,null,{"$error":"#N/A"},{"$error":"#N/A"},0]
[null,null,0,{"$error":"#N/A"},null,null,null,null,{"$error":"#N/A"},{"$error":"#N/A"},0]
[null,null,0,{"$error":"#N/A"},null,null,null,null,{"$error":"#N/A"},{"$error":"#N/A"},0]
[null,null,0,{"$error":"#N/A"},null,null,null,null,{"$error":"#N/A"},{"$error":"#N/A"},0]
[null,null,0,{"$error":"#N/A"},null,null,null,null,{"$error":"#N/A"},{"$error":"#N/A"},0]
[null,null,0,{"$error":"#N/A"},null,null,null,null,{"$error":"#N/A"},{"$error":"#N/A"},0]
[null,null,0,{"$error":"#N/A"},null,null,null,null,{"$error":"#N/A"},{"$error":"#N/A"},0]
[null,null,0,{"$error":"#N/A"},null,null,null,null,{"$error":"#N/A"},{"$error":"#N/A"},0]
[null,null,0,{"$error":"#N/A"},null,null,null,null,{"$error":"#N/A"},{"$error":"#N/A"},0]
[null,null,0,{"$error":"#N/A"},null,null,null,null,{"$error":"#N/A"},{"$error":"#N/A"},0]
[null,null,0,{"$error":"#N/A"},null,null,null,null,{"$error":"#N/A"},{"$error":"#N/A"},0]
[null,null,0,{"$error":"#N/A"},null,null,null,null,{"$error":"#N/A"},{"$error":"#N/A"},0]
[null,null,0,{"$error":"#N/A"},null,null,null,null,{"$error":"#N/A"},{"$error":"#N/A"},0]
[null,null,0,{"$error":"#N/A"},null,null,null,null,{"$error":"#N/A"},{"$error":"#N/A"},0]
[null,null,0,{"$error":"#N/A"},null,null,null,null,{"$error":"#N/A"},{"$error":"#N/A"},0]
[null,null,0,{"$error":"#N/A"},null,null,null,null,{"$error":"#N/A"},{"$error":"#N/A"},0]
[null,null,0,{"$error":"#N/A"},null,null,null,null,{"$error":"#N/A"},{"$error":"#N/A"},0]
[null,null,0,{"$error":"#N/A"},null,null,null,null,{"$error":"#N/A"},{"$error":"#N/A"},0]
[null,null,0,{"$error":"#N/A"},null,null,null,null,{"$error":"#N/A"},{"$error":"#N/A"},0]
[null,null,0,{"$error":"#N/A"},null,null,null,null,{"$error":"#N/A"},{"$error":"#N/A"},0]
[null,null,0,{"$error":"#N/A"},null,null,null,null,{"$error":"#N/A"},{"$error":"#N/A"},0]
[null,null,0,{"$error":"#N/A"},null,null,null,null,{"$error":"#N/A"},{"$error":"#N/A"},0]
[null,null,0,{"$error":"#N/A"},null,null,null,null,{"$error":"#N/A"},{"$error":"#N/A"},0]
[null,null,0,{"$error":"#N/A"},null,null,null,null,{"$error":"#N/A"},{"$error":"#N/A"},0]
[null,null,0,{"$error":"#N/A"},null,null,null,null,{"$error":"#N/A"},{"$error":"#N/A"},0]
[null,null,0,{"$error":"#N/A"},null,null,null,null,{"$error":"#N/A"},{"$error":"#N/A"},0]
[null,null,0,{"$error":"#N/A"},null,null,null,null,{"$error":"#N/A"},{"$error":"#N/A"},0]
[null,null,0,{"$error":"#N/A"},null,null,null,null,{"$error":"#N/A"},{"$error":"#N/A"},0]
[null,null,0,{"$error":"#N/A"},null,null,null,null,{"$error":"#N/A"},{"$error":"#N/A"},0]
[null,null,0,{"$error":"#N/A"},null,null,null,null,{"$error":"#N/A"},{"$error":"#N/A"},0]
[null,null,0,{"$error":"#N/A"},null,null,null,null,{"$error":"#N/A"},{"$error":"#N/A"},0]
[null,null,0,{"$error":"#N/A"},null,null,null,null,{"$error":"#N/A"},{"$error":"#N/A"},0]
[null,null,0,{"$error":"#N/A"},null,null,null,null,{"$error":"#N/A"},{"$error":"#N/A"},0]
[null,null,0,{"$error":"#N/A"},null,null,null,null,{"$error":"#N/A"},{"$error":"#N/A"},0]
[null,null,0,{"$error":"#N/A"},null,null,null,null,{"$error":"#N/A"},{"$error":"#N/A"},0]
[null,null,0,{"$error":"#N/A"},null,null,null,null,{"$error":"#N/A"},{"$error":"#N/A"},0]
[null,null,0,{"$error":"#N/A"},null,null,null,null,{"$error":"#N/A"},{"$error":"#N/A"},0]
[null,null,0,{"$error":"#N/A"},null,null,null,null,{"$error":"#N/A"},{"$f":"I108/$I$143","v":{"$error":"#N/A"}},{"$f":"IF($G$12<>0,I108/$G$12,0)","v":0}]
[null,null,0,{"$error":"#N/A"},null,null,null,null,{"$error":"#N/A"},{"$error":"#N/A"},0]
[null,null,0,{"$error":"#N/A"},null,null,null,null,{"$error":"#N/A"},{"$error":"#N/A"},0]
[null,null,0,{"$error":"#N/A"},null,null,null,null,{"$error":"#N/A"},{"$error":"#N/A"},0]
[null,null,0,{"$error":"#N/A"},null,null,null,null,{"$error":"#N/A"},{"$error":"#N/A"},0]
[null,null,0,{"$error":"#N/A"},null,null,null,null,{"$error":"#N/A"},{"$error":"#N/A"},0]
[null,null,0,{"$error":"#N/A"},null,null,null,null,{"$error":"#N/A"},{"$error":"#N/A"},0]
[null,null,0,{"$error":"#N/A"},null,null,null,null,{"$error":"#N/A"},{"$error":"#N/A"},0]
[null,null,0,{"$error":"#N/A"},null,null,null,null,{"$error":"#N/A"},{"$error":"#N/A"},0]
[null,null,0,{"$error":"#N/A"},null,null,null,null,{"$error":"#N/A"},{"$error":"#N/A"},0]
[null,null,0,{"$error":"#N/A"},null,null,null,null,{"$error":"#N/A"},{"$error":"#N/A"},0]
[null,null,0,{"$error":"#N/A"},null,null,null,null,{"$error":"#N/A"},{"$error":"#N/A"},0]
[null,null,0,{"$error":"#N/A"},null,null,null,null,{"$error":"#N/A"},{"$error":"#N/A"},0]
[null,null,0,{"$error":"#N/A"},null,null,null,null,{"$error":"#N/A"},{"$error":"#N/A"},0]
[null,null,0,{"$error":"#N/A"},null,null,null,null,{"$error":"#N/A"},{"$error":"#N/A"},0]
[null,null,0,{"$error":"#N/A"},null,null,null,null,{"$error":"#N/A"},{"$error":"#N/A"},0]
[null,null,0,{"$error":"#N/A"},null,null,null,null,{"$error":"#N/A"},{"$error":"#N/A"},0]
[null,null,0,{"$error":"#N/A"},null,null,null,null,{"$error":"#N/A"},{"$error":"#N/A"},0]
[null,null,0,{"$error":"#N/A"},null,null,null,null,{"$error":"#N/A"},{"$error":"#N/A"},0]
[null,null,0,{"$error":"#N/A"},null,null,null,null,{"$error":"#N/A"},{"$error":"#N/A"},0]
[null,null,0,{"$error":"#N/A"},null,null,null,null,{"$error":"#N/A"},{"$error":"#N/A"},0]
[null,null,0,{"$error":"#N/A"},null,null,null,null,{"$error":"#N/A"},{"$error":"#N/A"},0]
[null,null,0,{"$error":"#N/A"},null,null,null,null,{"$error":"#N/A"},{"$error":"#N/A"},0]
[null,null,0,{"$error":"#N/A"},null,null,null,null,{"$error":"#N/A"},{"$error":"#N/A"},0]
[null,null,0,{"$error":"#N/A"},null,null,null,null,{"$error":"#N/A"},{"$error":"#N/A"},0]
[null,null,0,{"$error":"#N/A"},null,null,null,null,{"$error":"#N/A"},{"$error":"#N/A"},0]
[null,null,0,{"$error":"#N/A"},null,null,null,null,{"$error":"#N/A"},{"$error":"#N/A"},0]
[null,null,0,{"$error":"#N/A"},null,null,null,null,{"$error":"#N/A"},{"$error":"#N/A"},0]
[null,null,0,{"$error":"#N/A"},null,null,null,null,{"$error":"#N/A"},{"$error":"#N/A"},0]
[null,null,0,{"$error":"#N/A"},null,null,null,null,{"$error":"#N/A"},{"$error":"#N/A"},0]
[null,null,0,{"$error":"#N/A"},null,null,null,null,{"$error":"#N/A"},{"$error":"#N/A"},0]
[null,null,0,{"$error":"#N/A"},null,null,null,null,{"$error":"#N/A"},{"$error":"#N/A"},0]
[null,null,0,{"$error":"#N/A"},null,null,null,null,{"$error":"#N/A"},{"$error":"#N/A"},0]
[null,null,0,{"$error":"#N/A"},null,null,null,null,{"$error":"#N/A"},{"$error":"#N/A"},0]
[null,null,0,{"$error":"#N/A"},null,null,null,null,{"$error":"#N/A"},{"$error":"#N/A"},0]
[null,null,null,null,null,null,null,null,{"$f":"IFERROR(SUM(I43:I56),0)","v":0},{"$f":"IFERROR(I143/$I$143,0)","v":0},{"$f":"IFERROR(IF($G$12<>0,I143/$G$12,0),0)","v":0}]
[]
[null,"Warning"]
[]
[null,null,null,null,{"$f":"SUM(E53:E66)","v":0}]
[]
[]
[]
[]
[]
[]
[]
[]
[]
[]
[]
[]
[]
[null,"WARNING","Tab Names","Long Desc",null,null,null,null,"Issue Count","Warning %","Total Issue %"]
[null,null,0,{"$error":"#N/A"},null,null,null,null,{"$error":"#N/A"},{"$f":"I162/$I$262","v":{"$error":"#N/A"}},{"$f":"IF($G$12<>0,I162/$G$12,0)","v":0}]
[null,null,0,{"$error":"#N/A"},null,null,null,null,{"$error":"#N/A"},{"$error":"#N/A"},0]
[null,null,0,{"$error":"#N/A"},null,null,null,null,{"$error":"#N/A"},{"$error":"#N/A"},0]
[null,null,0,{"$error":"#N/A"},null,null,null,null,{"$error":"#N/A"},{"$error":"#N/A"},0]
[null,null,0,{"$error":"#N/A"},null,null,null,null,{"$error":"#N/A"},{"$error":"#N/A"},0]
[null,null,0,{"$error":"#N/A"},null,null,null,null,{"$error":"#N/A"},{"$error":"#N/A"},0]
[null,null,0,{"$error":"#N/A"},null,null,null,null,{"$error":"#N/A"},{"$f":"I168/$I$262","v":{"$error":"#N/A"}},{"$f":"IF($G$12<>0,I168/$G$12,0)","v":0}]
[null,null,0,{"$error":"#N/A"},null,null,null,null,{"$error":"#N/A"},{"$error":"#N/A"},0]
[null,null,0,{"$error":"#N/A"},null,null,null,null,{"$error":"#N/A"},{"$error":"#N/A"},0]
[null,null,0,{"$error":"#N/A"},null,null,null,null,{"$error":"#N/A"},{"$error":"#N/A"},0]
[null,null,0,{"$error":"#N/A"},null,null,null,null,{"$error":"#N/A"},{"$error":"#N/A"},0]
[null,null,0,{"$error":"#N/A"},null,null,null,null,{"$error":"#N/A"},{"$error":"#N/A"},0]
[null,null,0,{"$error":"#N/A"},null,null,null,null,{"$error":"#N/A"},{"$error":"#N/A"},0]
[null,null,0,{"$error":"#N/A"},null,null,null,null,{"$error":"#N/A"},{"$error":"#N/A"},0]
[null,null,0,{"$error":"#N/A"},null,null,null,null,{"$error":"#N/A"},{"$error":"#N/A"},0]
[null,null,0,{"$error":"#N/A"},null,null,null,null,{"$error":"#N/A"},{"$error":"#N/A"},0]
[null,null,0,{"$error":"#N/A"},null,null,null,null,{"$error":"#N/A"},{"$error":"#N/A"},0]
[null,null,0,{"$error":"#N/A"},null,null,null,null,{"$error":"#N/A"},{"$error":"#N/A"},0]
[null,null,0,{"$error":"#N/A"},null,null,null,null,{"$error":"#N/A"},{"$error":"#N/A"},0]
[null,null,0,{"$error":"#N/A"},null,null,null,null,{"$error":"#N/A"},{"$error":"#N/A"},0]
[null,null,0,{"$error":"#N/A"},null,null,null,null,{"$error":"#N/A"},{"$error":"#N/A"},0]
[null,null,0,{"$error":"#N/A"},null,null,null,null,{"$error":"#N/A"},{"$error":"#N/A"},0]
[null,null,0,{"$error":"#N/A"},null,null,null,null,{"$error":"#N/A"},{"$error":"#N/A"},0]
[null,null,0,{"$error":"#N/A"},null,null,null,null,{"$error":"#N/A"},{"$error":"#N/A"},0]
[null,null,0,{"$error":"#N/A"},null,null,null,null,{"$error":"#N/A"},{"$error":"#N/A"},0]
[null,null,0,{"$error":"#N/A"},null,null,null,null,{"$error":"#N/A"},{"$error":"#N/A"},0]
[null,null,0,{"$error":"#N/A"},null,null,null,null,{"$error":"#N/A"},{"$error":"#N/A"},0]
[null,null,0,{"$error":"#N/A"},null,null,null,null,{"$error":"#N/A"},{"$error":"#N/A"},0]
[null,null,0,{"$error":"#N/A"},null,null,null,null,{"$error":"#N/A"},{"$error":"#N/A"},0]
[null,null,0,{"$error":"#N/A"},null,null,null,null,{"$error":"#N/A"},{"$error":"#N/A"},0]
[null,null,0,{"$error":"#N/A"},null,null,null,null,{"$error":"#N/A"},{"$error":"#N/A"},0]
[null,null,0,{"$error":"#N/A"},null,null,null,null,{"$error":"#N/A"},{"$error":"#N/A"},0]
[null,null,0,{"$error":"#N/A"},null,null,null,null,{"$error":"#N/A"},{"$error":"#N/A"},0]
[null,null,0,{"$error":"#N/A"},null,null,null,null,{"$error":"#N/A"},{"$error":"#N/A"},0]
[null,null,0,{"$error":"#N/A"},null,null,null,null,{"$error":"#N/A"},{"$error":"#N/A"},0]
[null,null,0,{"$error":"#N/A"},null,null,null,null,{"$error":"#N/A"},{"$error":"#N/A"},0]
[null,null,0,{"$error":"#N/A"},null,null,null,null,{"$error":"#N/A"},{"$error":"#N/A"},0]
[null,null,0,{"$error":"#N/A"},null,null,null,null,{"$error":"#N/A"},{"$error":"#N/A"},0]
[null,null,0,{"$error":"#N/A"},null,null,null,null,{"$error":"#N/A"},{"$error":"#N/A"},0]
[null,null,0,{"$error":"#N/A"},null,null,null,null,{"$error":"#N/A"},{"$error":"#N/A"},0]
[null,null,0,{"$error":"#N/A"},null,null,null,null,{"$error":"#N/A"},{"$error":"#N/A"},0]
[null,null,0,{"$error":"#N/A"},null,null,null,null,{"$error":"#N/A"},{"$error":"#N/A"},0]
[null,null,0,{"$error":"#N/A"},null,null,null,null,{"$error":"#N/A"},{"$error":"#N/A"},0]
[null,null,0,{"$error":"#N/A"},null,null,null,null,{"$error":"#N/A"},{"$error":"#N/A"},0]
[null,null,0,{"$error":"#N/A"},null,null,null,null,{"$error":"#N/A"},{"$error":"#N/A"},0]
[null,null,0,{"$error":"#N/A"},null,null,null,null,{"$error":"#N/A"},{"$error":"#N/A"},0]
[null,null,0,{"$error":"#N/A"},null,null,null,null,{"$error":"#N/A"},{"$error":"#N/A"},0]
[null,null,0,{"$error":"#N/A"},null,null,null,null,{"$error":"#N/A"},{"$error":"#N/A"},0]
[null,null,0,{"$error":"#N/A"},null,null,null,null,{"$error":"#N/A"},{"$error":"#N/A"},0]
[null,null,0,{"$error":"#N/A"},null,null,null,null,{"$error":"#N/A"},{"$error":"#N/A"},0]
[null,null,0,{"$error":"#N/A"},null,null,null,null,{"$error":"#N/A"},{"$error":"#N/A"},0]
[null,null,0,{"$error":"#N/A"},null,null,null,null,{"$error":"#N/A"},{"$error":"#N/A"},0]
[null,null,0,{"$error":"#N/A"},null,null,null,null,{"$error":"#N/A"},{"$error":"#N/A"},0]
[null,null,0,{"$error":"#N/A"},null,null,null,null,{"$error":"#N/A"},{"$error":"#N/A"},0]
[null,null,0,{"$error":"#N/A"},null,null,null,null,{"$error":"#N/A"},{"$error":"#N/A"},0]
[null,null,0,{"$error":"#N/A"},null,null,null,null,{"$error":"#N/A"},{"$error":"#N/A"},0]
[null,null,0,{"$error":"#N/A"},null,null,null,null,{"$error":"#N/A"},{"$error":"#N/A"},0]
[null,null,0,{"$error":"#N/A"},null,null,null,null,{"$error":"#N/A"},{"$error":"#N/A"},0]
[null,null,0,{"$error":"#N/A"},null,null,null,null,{"$error":"#N/A"},{"$error":"#N/A"},0]
[null,null,0,{"$error":"#N/A"},null,null,null,null,{"$error":"#N/A"},{"$error":"#N/A"},0]
[null,null,0,{"$error":"#N/A"},null,null,null,null,{"$error":"#N/A"},{"$error":"#N/A"},0]
[null,null,0,{"$error":"#N/A"},null,null,null,null,{"$error":"#N/A"},{"$error":"#N/A"},0]
[null,null,0,{"$error":"#N/A"},null,null,null,null,{"$error":"#N/A"},{"$error":"#N/A"},0]
[null,null,0,{"$error":"#N/A"},null,null,null,null,{"$error":"#N/A"},{"$error":"#N/A"},0]
[null,null,0,{"$error":"#N/A"},null,null,null,null,{"$error":"#N/A"},{"$error":"#N/A"},0]
[null,null,0,{"$error":"#N/A"},null,null,null,null,{"$error":"#N/A"},{"$error":"#N/A"},{"$f":"IF($G$12<>0,I227/$G$12,0)","v":0}]
[null,null,0,{"$error":"#N/A"},null,null,null,null,{"$error":"#N/A"},{"$error":"#N/A"},0]
[null,null,0,{"$error":"#N/A"},null,null,null,null,{"$error":"#N/A"},{"$error":"#N/A"},0]
[null,null,0,{"$error":"#N/A"},null,null,null,null,{"$error":"#N/A"},{"$error":"#N/A"},0]
[null,null,0,{"$error":"#N/A"},null,null,null,null,{"$error":"#N/A"},{"$error":"#N/A"},0]
[null,null,0,{"$error":"#N/A"},null,null,null,null,{"$error":"#N/A"},{"$f":"I232/$I$262","v":{"$error":"#N/A"}},0]
[null,null,0,{"$error":"#N/A"},null,null,null,null,{"$error":"#N/A"},{"$error":"#N/A"},0]
[null,null,0,{"$error":"#N/A"},null,null,null,null,{"$error":"#N/A"},{"$error":"#N/A"},0]
[null,null,0,{"$error":"#N/A"},null,null,null,null,{"$error":"#N/A"},{"$error":"#N/A"},0]
[null,null,0,{"$error":"#N/A"},null,null,null,null,{"$error":"#N/A"},{"$error":"#N/A"},0]
[null,null,0,{"$error":"#N/A"},null,null,null,null,{"$error":"#N/A"},{"$error":"#N/A"},0]
[null,null,0,{"$error":"#N/A"},null,null,null,null,{"$error":"#N/A"},{"$error":"#N/A"},0]
[null,null,0,{"$error":"#N/A"},null,null,null,null,{"$error":"#N/A"},{"$error":"#N/A"},0]
[null,null,0,{"$error":"#N/A"},null,null,null,null,{"$error":"#N/A"},{"$error":"#N/A"},0]
[null,null,0,{"$error":"#N/A"},null,null,null,null,{"$error":"#N/A"},{"$error":"#N/A"},0]
[null,null,0,{"$error":"#N/A"},null,null,null,null,{"$error":"#N/A"},{"$error":"#N/A"},0]
[null,null,0,{"$error":"#N/A"},null,null,null,null,{"$error":"#N/A"},{"$error":"#N/A"},0]
[null,null,0,{"$error":"#N/A"},null,null,null,null,{"$error":"#N/A"},{"$error":"#N/A"},0]
[null,null,0,{"$error":"#N/A"},null,null,null,null,{"$error":"#N/A"},{"$error":"#N/A"},0]
[null,null,0,{"$error":"#N/A"},null,null,null,null,{"$error":"#N/A"},{"$error":"#N/A"},0]
[null,null,0,{"$error":"#N/A"},null,null,null,null,{"$error":"#N/A"},{"$error":"#N/A"},0]
[null,null,0,{"$error":"#N/A"},null,null,null,null,{"$error":"#N/A"},{"$error":"#N/A"},0]
[null,null,0,{"$error":"#N/A"},null,null,null,null,{"$error":"#N/A"},{"$error":"#N/A"},0]
[null,null,0,{"$error":"#N/A"},null,null,null,null,{"$error":"#N/A"},{"$error":"#N/A"},0]
[null,null,0,{"$error":"#N/A"},null,null,null,null,{"$error":"#N/A"},{"$error":"#N/A"},0]
[null,null,0,{"$error":"#N/A"},null,null,null,null,{"$error":"#N/A"},{"$error":"#N/A"},0]
[null,null,0,{"$error":"#N/A"},null,null,null,null,{"$error":"#N/A"},{"$error":"#N/A"},0]
[null,null,0,{"$error":"#N/A"},null,null,null,null,{"$error":"#N/A"},{"$error":"#N/A"},0]
[null,null,0,{"$error":"#N/A"},null,null,null,null,{"$error":"#N/A"},{"$error":"#N/A"},0]
[null,null,0,{"$error":"#N/A"},null,null,null,null,{"$error":"#N/A"},{"$error":"#N/A"},0]
[null,null,0,{"$error":"#N/A"},null,null,null,null,{"$error":"#N/A"},{"$error":"#N/A"},0]
[null,null,0,{"$error":"#N/A"},null,null,null,null,{"$error":"#N/A"},{"$error":"#N/A"},0]
[null,null,0,{"$error":"#N/A"},null,null,null,null,{"$error":"#N/A"},{"$error":"#N/A"},0]
[null,null,0,{"$error":"#N/A"},null,null,null,null,{"$error":"#N/A"},{"$error":"#N/A"},0]
[null,null,0,{"$error":"#N/A"},null,null,null,null,{"$error":"#N/A"},{"$error":"#N/A"},0]
[null,null,null,null,null,null,null,null,{"$f":"IFERROR(SUM(I162:I167),0)","v":0},{"$f":"IFERROR(I262/$I$262,0)","v":0},{"$f":"IFERROR(IF($G$12<>0,I262/$G$12,0),0)","v":0}]
[]
[null,"Info"]
[]
[]
[]
[]
[]
[]
[]
[]
[]
[]
[]
[]
[null,null,"URL Underscores","URLs found using underscores",{"$error":"#REF!"}]
[]
[]
[null,"INFO","Tab Names","Long Desc",null,null,null,null,"Issue Count","Info %","Total Issue %"]
[null,null,0,{"$error":"#N/A"},null,null,null,null,{"$error":"#N/A"},{"$f":"I281/$I$381","v":{"$error":"#N/A"}},{"$f":"IF($G$12<>0,I281/$G$12,0)","v":0}]
[null,null,0,{"$error":"#N/A"},null,null,null,null,{"$error":"#N/A"},{"$error":"#N/A"},0]
[null,null,0,{"$error":"#N/A"},null,null,null,null,{"$error":"#N/A"},{"$error":"#N/A"},0]
[null,null,0,{"$error":"#N/A"},null,null,null,null,{"$error":"#N/A"},{"$error":"#N/A"},0]
[null,null,0,{"$error":"#N/A"},null,null,null,null,{"$error":"#N/A"},{"$error":"#N/A"},0]
[null,null,0,{"$error":"#N/A"},null,null,null,null,{"$error":"#N/A"},{"$error":"#N/A"},0]
[null,null,0,{"$error":"#N/A"},null,null,null,null,{"$error":"#N/A"},{"$f":"I287/$I$381","v":{"$error":"#N/A"}},{"$f":"IF($G$12<>0,I287/$G$12,0)","v":0}]
[null,null,0,{"$error":"#N/A"},null,null,null,null,{"$error":"#N/A"},{"$error":"#N/A"},0]
[null,null,0,{"$error":"#N/A"},null,null,null,null,{"$error":"#N/A"},{"$error":"#N/A"},0]
[null,null,0,{"$error":"#N/A"},null,null,null,null,{"$error":"#N/A"},{"$error":"#N/A"},0]
[null,null,0,{"$error":"#N/A"},null,null,null,null,{"$error":"#N/A"},{"$error":"#N/A"},0]
[null,null,0,{"$error":"#N/A"},null,null,null,null,{"$error":"#N/A"},{"$error":"#N/A"},0]
[null,null,0,{"$error":"#N/A"},null,null,null,null,{"$error":"#N/A"},{"$error":"#N/A"},0]
[null,null,0,{"$error":"#N/A"},null,null,null,null,{"$error":"#N/A"},{"$error":"#N/A"},0]
[null,null,0,{"$error":"#N/A"},null,null,null,null,{"$error":"#N/A"},{"$error":"#N/A"},0]
[null,null,0,{"$error":"#N/A"},null,null,null,null,{"$error":"#N/A"},{"$error":"#N/A"},0]
[null,null,0,{"$error":"#N/A"},null,null,null,null,{"$error":"#N/A"},{"$error":"#N/A"},0]
[null,null,0,{"$error":"#N/A"},null,null,null,null,{"$error":"#N/A"},{"$error":"#N/A"},0]
[null,null,0,{"$error":"#N/A"},null,null,null,null,{"$error":"#N/A"},{"$error":"#N/A"},0]
[null,null,0,{"$error":"#N/A"},null,null,null,null,{"$error":"#N/A"},{"$error":"#N/A"},0]
[null,null,0,{"$error":"#N/A"},null,null,null,null,{"$error":"#N/A"},{"$error":"#N/A"},0]
[null,null,0,{"$error":"#N/A"},null,null,null,null,{"$error":"#N/A"},{"$error":"#N/A"},0]
[null,null,0,{"$error":"#N/A"},null,null,null,null,{"$error":"#N/A"},{"$error":"#N/A"},0]
[null,null,0,{"$error":"#N/A"},null,null,null,null,{"$error":"#N/A"},{"$error":"#N/A"},0]
[null,null,0,{"$error":"#N/A"},null,null,null,null,{"$error":"#N/A"},{"$error":"#N/A"},0]
[null,null,0,{"$error":"#N/A"},null,null,null,null,{"$error":"#N/A"},{"$error":"#N/A"},0]
[null,null,0,{"$error":"#N/A"},null,null,null,null,{"$error":"#N/A"},{"$error":"#N/A"},0]
[null,null,0,{"$error":"#N/A"},null,null,null,null,{"$error":"#N/A"},{"$error":"#N/A"},0]
[null,null,0,{"$error":"#N/A"},null,null,null,null,{"$error":"#N/A"},{"$error":"#N/A"},0]
[null,null,0,{"$error":"#N/A"},null,null,null,null,{"$error":"#N/A"},{"$error":"#N/A"},0]
[null,null,0,{"$error":"#N/A"},null,null,null,null,{"$error":"#N/A"},{"$error":"#N/A"},0]
[null,null,0,{"$error":"#N/A"},null,null,null,null,{"$error":"#N/A"},{"$error":"#N/A"},0]
[null,null,0,{"$error":"#N/A"},null,null,null,null,{"$error":"#N/A"},{"$error":"#N/A"},0]
[null,null,0,{"$error":"#N/A"},null,null,null,null,{"$error":"#N/A"},{"$error":"#N/A"},0]
[null,null,0,{"$error":"#N/A"},null,null,null,null,{"$error":"#N/A"},{"$error":"#N/A"},0]
[null,null,0,{"$error":"#N/A"},null,null,null,null,{"$error":"#N/A"},{"$error":"#N/A"},0]
[null,null,0,{"$error":"#N/A"},null,null,null,null,{"$error":"#N/A"},{"$error":"#N/A"},0]
[null,null,0,{"$error":"#N/A"},null,null,null,null,{"$error":"#N/A"},{"$error":"#N/A"},0]
[null,null,0,{"$error":"#N/A"},null,null,null,null,{"$error":"#N/A"},{"$error":"#N/A"},0]
[null,null,0,{"$error":"#N/A"},null,null,null,null,{"$error":"#N/A"},{"$error":"#N/A"},0]
[null,null,0,{"$error":"#N/A"},null,null,null,null,{"$error":"#N/A"},{"$error":"#N/A"},0]
[null,null,0,{"$error":"#N/A"},null,null,null,null,{"$error":"#N/A"},{"$error":"#N/A"},0]
[null,null,0,{"$error":"#N/A"},null,null,null,null,{"$error":"#N/A"},{"$error":"#N/A"},0]
[null,null,0,{"$error":"#N/A"},null,null,null,null,{"$error":"#N/A"},{"$error":"#N/A"},0]
[null,null,0,{"$error":"#N/A"},null,null,null,null,{"$error":"#N/A"},{"$error":"#N/A"},0]
[null,null,0,{"$error":"#N/A"},null,null,null,null,{"$error":"#N/A"},{"$error":"#N/A"},0]
[null,null,0,{"$error":"#N/A"},null,null,null,null,{"$error":"#N/A"},{"$error":"#N/A"},0]
[null,null,0,{"$error":"#N/A"},null,null,null,null,{"$error":"#N/A"},{"$error":"#N/A"},0]
[null,null,0,{"$error":"#N/A"},null,null,null,null,{"$error":"#N/A"},{"$error":"#N/A"},0]
[null,null,0,{"$error":"#N/A"},null,null,null,null,{"$error":"#N/A"},{"$error":"#N/A"},0]
[null,null,0,{"$error":"#N/A"},null,null,null,null,{"$error":"#N/A"},{"$error":"#N/A"},0]
[null,null,0,{"$error":"#N/A"},null,null,null,null,{"$error":"#N/A"},{"$error":"#N/A"},0]
[null,null,0,{"$error":"#N/A"},null,null,null,null,{"$error":"#N/A"},{"$error":"#N/A"},0]
[null,null,0,{"$error":"#N/A"},null,null,null,null,{"$error":"#N/A"},{"$error":"#N/A"},0]
[null,null,0,{"$error":"#N/A"},null,null,null,null,{"$error":"#N/A"},{"$error":"#N/A"},0]
[null,null,0,{"$error":"#N/A"},null,null,null,null,{"$error":"#N/A"},{"$error":"#N/A"},0]
[null,null,0,{"$error":"#N/A"},null,null,null,null,{"$error":"#N/A"},{"$error":"#N/A"},0]
[null,null,0,{"$error":"#N/A"},null,null,null,null,{"$error":"#N/A"},{"$error":"#N/A"},0]
[null,null,0,{"$error":"#N/A"},null,null,null,null,{"$error":"#N/A"},{"$error":"#N/A"},0]
[null,null,0,{"$error":"#N/A"},null,null,null,null,{"$error":"#N/A"},{"$error":"#N/A"},0]
[null,null,0,{"$error":"#N/A"},null,null,null,null,{"$error":"#N/A"},{"$error":"#N/A"},0]
[null,null,0,{"$error":"#N/A"},null,null,null,null,{"$error":"#N/A"},{"$error":"#N/A"},0]
[null,null,0,{"$error":"#N/A"},null,null,null,null,{"$error":"#N/A"},{"$error":"#N/A"},0]
[null,null,0,{"$error":"#N/A"},null,null,null,null,{"$error":"#N/A"},{"$error":"#N/A"},0]
[null,null,0,{"$error":"#N/A"},null,null,null,null,{"$error":"#N/A"},{"$error":"#N/A"},0]
[null,null,0,{"$error":"#N/A"},null,null,null,null,{"$error":"#N/A"},{"$f":"I346/$I$381","v":{"$error":"#N/A"}},{"$f":"IF($G$12<>0,I346/$G$12,0)","v":0}]
[null,null,0,{"$error":"#N/A"},null,null,null,null,{"$error":"#N/A"},{"$error":"#N/A"},0]
[null,null,0,{"$error":"#N/A"},null,null,null,null,{"$error":"#N/A"},{"$error":"#N/A"},0]
[null,null,0,{"$error":"#N/A"},null,null,null,null,{"$error":"#N/A"},{"$error":"#N/A"},0]
[null,null,0,{"$error":"#N/A"},null,null,null,null,{"$error":"#N/A"},{"$error":"#N/A"},0]
[null,null,0,{"$error":"#N/A"},null,null,null,null,{"$error":"#N/A"},{"$error":"#N/A"},0]
[null,null,0,{"$error":"#N/A"},null,null,null,null,{"$error":"#N/A"},{"$error":"#N/A"},0]
[null,null,0,{"$error":"#N/A"},null,null,null,null,{"$error":"#N/A"},{"$error":"#N/A"},0]
[null,null,0,{"$error":"#N/A"},null,null,null,null,{"$error":"#N/A"},{"$error":"#N/A"},0]
[null,null,0,{"$error":"#N/A"},null,null,null,null,{"$error":"#N/A"},{"$error":"#N/A"},0]
[null,null,0,{"$error":"#N/A"},null,null,null,null,{"$error":"#N/A"},{"$error":"#N/A"},0]
[null,null,0,{"$error":"#N/A"},null,null,null,null,{"$error":"#N/A"},{"$error":"#N/A"},0]
[null,null,0,{"$error":"#N/A"},null,null,null,null,{"$error":"#N/A"},{"$error":"#N/A"},0]
[null,null,0,{"$error":"#N/A"},null,null,null,null,{"$error":"#N/A"},{"$error":"#N/A"},0]
[null,null,0,{"$error":"#N/A"},null,null,null,null,{"$error":"#N/A"},{"$error":"#N/A"},0]
[null,null,0,{"$error":"#N/A"},null,null,null,null,{"$error":"#N/A"},{"$error":"#N/A"},0]
[null,null,0,{"$error":"#N/A"},null,null,null,null,{"$error":"#N/A"},{"$error":"#N/A"},0]
[null,null,0,{"$error":"#N/A"},null,null,null,null,{"$error":"#N/A"},{"$error":"#N/A"},0]
[null,null,0,{"$error":"#N/A"},null,null,null,null,{"$error":"#N/A"},{"$error":"#N/A"},0]
[null,null,0,{"$error":"#N/A"},null,null,null,null,{"$error":"#N/A"},{"$error":"#N/A"},0]
[null,null,0,{"$error":"#N/A"},null,null,null,null,{"$error":"#N/A"},{"$error":"#N/A"},0]
[null,null,0,{"$error":"#N/A"},null,null,null,null,{"$error":"#N/A"},{"$error":"#N/A"},0]
[null,null,0,{"$error":"#N/A"},null,null,null,null,{"$error":"#N/A"},{"$error":"#N/A"},0]
[null,null,0,{"$error":"#N/A"},null,null,null,null,{"$error":"#N/A"},{"$error":"#N/A"},0]
[null,null,0,{"$error":"#N/A"},null,null,null,null,{"$error":"#N/A"},{"$error":"#N/A"},0]
[null,null,0,{"$error":"#N/A"},null,null,null,null,{"$error":"#N/A"},{"$error":"#N/A"},0]
[null,null,0,{"$error":"#N/A"},null,null,null,null,{"$error":"#N/A"},{"$error":"#N/A"},0]
[null,null,0,{"$error":"#N/A"},null,null,null,null,{"$error":"#N/A"},{"$error":"#N/A"},0]
[null,null,0,{"$error":"#N/A"},null,null,null,null,{"$error":"#N/A"},{"$error":"#N/A"},0]
[null,null,0,{"$error":"#N/A"},null,null,null,null,{"$error":"#N/A"},{"$error":"#N/A"},0]
[null,null,0,{"$error":"#N/A"},null,null,null,null,{"$error":"#N/A"},{"$error":"#N/A"},0]
[null,null,0,{"$error":"#N/A"},null,null,null,null,{"$error":"#N/A"},{"$error":"#N/A"},0]
[null,null,0,{"$error":"#N/A"},null,null,null,null,{"$error":"#N/A"},{"$error":"#N/A"},0]
[null,null,0,{"$error":"#N/A"},null,null,null,null,{"$error":"#N/A"},{"$error":"#N/A"},0]
[null,null,0,{"$error":"#N/A"},null,null,null,null,{"$error":"#N/A"},{"$error":"#N/A"},0]
[null,null,null,null,null,null,null,null,{"$f":"IFERROR(SUM(I281:I286),0)","v":0},{"$f":"IFERROR(I381/$I$381,0)","v":0},{"$f":"IFERROR(IF($G$12<>0,I381/$G$12,0),0)","v":0}]

{"sheet":"Excessive Table Use","index":1,"n_rows":9,"n_cols":3,"rows_kept":9,"cut":false,"hidden":false,"merged":[]}
[]
[]
[null,"Excessive Table Use"]
[]
[null,"Pages found coded with more than 100 HTML tables"]
[null,"Total Count: 0"]
[]
[null,"Issue Severity: Critical"]
[null,"URL","Table Count"]

{"sheet":"Large Page Size","index":2,"n_rows":9,"n_cols":3,"rows_kept":9,"cut":false,"hidden":false,"merged":[]}
[]
[]
[null,"Large Page Size"]
[]
[null,"Pages found larger than 250k"]
[null,"Total Count: 0"]
[]
[null,"Issue Severity: Critical"]
[null,"URL","Page Size"]

{"sheet":"Large ViewState Code","index":3,"n_rows":9,"n_cols":3,"rows_kept":9,"cut":false,"hidden":false,"merged":[]}
[]
[]
[null,"Large ViewState Code"]
[]
[null,"Pages found with more than 1000 characters of viewstate code"]
[null,"Total Count: 0"]
[]
[null,"Issue Severity: Critical"]
[null,"URL","Character Count"]

{"sheet":"Multiple H1 Tags","index":4,"n_rows":9,"n_cols":3,"rows_kept":9,"cut":false,"hidden":false,"merged":[]}
[]
[]
[null,"Multiple H1 Tags"]
[]
[null,"Pages found with multiple H1 tags"]
[null,"Total Count: 0"]
[]
[null,"Issue Severity: Critical"]
[null,"URL","Count"]

{"sheet":"Multiple Meta Description","index":5,"n_rows":9,"n_cols":3,"rows_kept":9,"cut":false,"hidden":false,"merged":[]}
[]
[]
[null,"Multiple Meta Description"]
[]
[null,"Pages found with multiple meta description tags"]
[null,"Total Count: 0"]
[]
[null,"Issue Severity: Critical"]
[null,"URL","Count"]

{"sheet":"Missing Title Tags","index":6,"n_rows":9,"n_cols":3,"rows_kept":9,"cut":false,"hidden":false,"merged":[]}
[]
[]
[null,"Missing Title Tags"]
[]
[null,"Pages found missing a title tag"]
[null,"Total Count: 0"]
[]
[null,"Issue Severity: Critical"]
[null,"URL","Title Tag"]

{"sheet":"URL Special Characters","index":7,"n_rows":9,"n_cols":4,"rows_kept":9,"cut":false,"hidden":false,"merged":[]}
[]
[]
[null,"URL Special Characters"]
[]
[null,"URLs found with special characters (see cell comment for additional details)"]
[null,"Total Count: 0"]
[]
[null,"Issue Severity: Critical"]
[null,"URL","Special Character Count","Special Characters"]

{"sheet":"Embedded Scripts","index":8,"n_rows":9,"n_cols":5,"rows_kept":9,"cut":false,"hidden":false,"merged":[]}
[]
[]
[null,"Embedded Scripts"]
[]
[null,"Pages found with more than 50,000 characters of embedded script code"]
[null,"Total Count: 0"]
[]
[null,"Issue Severity: Critical"]
[null,"URL","# of Script Tags","Redirect Script (Yes/No)","Character Count"]

{"sheet":"Click Depth","index":9,"n_rows":9,"n_cols":3,"rows_kept":9,"cut":false,"hidden":false,"merged":[]}
[]
[]
[null,"Click Depth"]
[]
[null,"Pages found more than three clicks from the crawl initiating URL"]
[null,"Total Count: 0"]
[]
[null,"Issue Severity: Critical"]
[null,"URL","Click Depth"]

{"sheet":"Short Meta Descriptions","index":10,"n_rows":9,"n_cols":4,"rows_kept":9,"cut":false,"hidden":false,"merged":[]}
[]
[]
[null,"Short Meta Descriptions"]
[]
[null,"Pages found with meta description tag shorter than 125 characters"]
[null,"Total Count: 0"]
[]
[null,"Issue Severity: Critical"]
[null,"URL","Meta Description","Character Count"]

{"sheet":"Missing Meta Description","index":11,"n_rows":10,"n_cols":3,"rows_kept":10,"cut":false,"hidden":false,"merged":[]}
[]
[]
[null,"Missing Meta Description"]
[]
[null,"Pages found missing a meta description tag"]
[null,"Total Count: 1"]
[]
[null,"Issue Severity: Critical"]
[null,"URL","Meta Description Tag"]
[null,"http://ec2-184-72-66-227.compute-1.amazonaws.com/","Missing"]

{"sheet":"Missing H1 Tag","index":12,"n_rows":9,"n_cols":3,"rows_kept":9,"cut":false,"hidden":false,"merged":[]}
[]
[]
[null,"Missing H1 Tag"]
[]
[null,"Pages found missing an H1 tag"]
[null,"Total Count: 0"]
[]
[null,"Issue Severity: Critical"]
[null,"URL","H1 Tag"]

{"sheet":"Duplicate H1 Tags","index":13,"n_rows":9,"n_cols":3,"rows_kept":9,"cut":false,"hidden":false,"merged":[]}
[]
[]
[null,"Duplicate H1 Tags"]
[]
[null,"Pages found with duplicate H1 tags"]
[null,"Total Count: 0"]
[]
[null,"Issue Severity: Critical"]
[null,"URL","Duplicate"]

{"sheet":"Duplicate Title Tags","index":14,"n_rows":9,"n_cols":3,"rows_kept":9,"cut":false,"hidden":false,"merged":[]}
[]
[]
[null,"Duplicate Title Tags"]
[]
[null,"Pages found with duplicate title tags"]
[null,"Total Count: 0"]
[]
[null,"Issue Severity: Critical"]
[null,"URL","Duplicate"]

{"sheet":"Duplicate Meta Description","index":15,"n_rows":9,"n_cols":3,"rows_kept":9,"cut":false,"hidden":false,"merged":[]}
[]
[]
[null,"Duplicate Meta Description"]
[]
[null,"Pages found with duplicate meta description tags"]
[null,"Total Count: 0"]
[]
[null,"Issue Severity: Critical"]
[null,"URL","Duplicate"]

{"sheet":"Long Meta Keywords","index":16,"n_rows":9,"n_cols":4,"rows_kept":9,"cut":false,"hidden":false,"merged":[]}
[]
[]
[null,"Long Meta Keywords"]
[]
[null,"Pages found with meta keywords longer than 500 characters"]
[null,"Total Count: 0"]
[]
[null,"Issue Severity: Critical"]
[null,"URL","Meta Keywords","Character Count"]

{"sheet":"Long Title Tags","index":17,"n_rows":9,"n_cols":4,"rows_kept":9,"cut":false,"hidden":false,"merged":[]}
[]
[]
[null,"Long Title Tags"]
[]
[null,"Pages found with title tags longer than 150 characters"]
[null,"Total Count: 0"]
[]
[null,"Issue Severity: Critical"]
[null,"URL","Title Tags","Character Count"]

{"sheet":"Long Meta Descriptions","index":18,"n_rows":9,"n_cols":4,"rows_kept":9,"cut":false,"hidden":false,"merged":[]}
[]
[]
[null,"Long Meta Descriptions"]
[]
[null,"Pages found with meta descriptions longer than 400 characters"]
[null,"Total Count: 0"]
[]
[null,"Issue Severity: Critical"]
[null,"URL","Meta Descriptions","Character Count"]

{"sheet":"URL Appended Parameters","index":19,"n_rows":9,"n_cols":3,"rows_kept":9,"cut":false,"hidden":false,"merged":[]}
[]
[]
[null,"Appended Parameters"]
[]
[null,"URLs found with appended parameters"]
[null,"Total Count: 0"]
[]
[null,"Issue Severity: Critical"]
[null,"URL","Appended Parameter Count"]

{"sheet":"404s","index":20,"n_rows":9,"n_cols":3,"rows_kept":9,"cut":false,"hidden":false,"merged":[]}
[]
[]
[null,"404s"]
[]
[null,"Page Error found - Page Not Found - 404 Response Code"]
[null,"Total Count: 0"]
[]
[null,"Issue Severity: Critical"]
[null,"URL","Response Code"]

{"sheet":"Multiple Title Tags","index":21,"n_rows":9,"n_cols":3,"rows_kept":9,"cut":false,"hidden":false,"merged":[]}
[]
[]
[null,"Multiple Title Tags"]
[]
[null,"Pages found with multiple title tags"]
[null,"Total Count: 0"]
[]
[null,"Issue Severity: Critical"]
[null,"URL","Count"]

{"sheet":"303s","index":22,"n_rows":9,"n_cols":3,"rows_kept":9,"cut":false,"hidden":false,"merged":[]}
[]
[]
[null,"303s"]
[]
[null,"Get Request - 303 Response Code"]
[null,"Total Count: 0"]
[]
[null,"Issue Severity: Warning"]
[null,"URL","Response Code"]

{"sheet":"400s","index":23,"n_rows":9,"n_cols":3,"rows_kept":9,"cut":false,"hidden":false,"merged":[]}
[]
[]
[null,"400s"]
[]
[null,"Page Error found - Bad Request - 400 Response Code"]
[null,"Total Count: 0"]
[]
[null,"Issue Severity: Warning"]
[null,"URL","Response Code"]

{"sheet":"401s","index":24,"n_rows":9,"n_cols":3,"rows_kept":9,"cut":false,"hidden":false,"merged":[]}
[]
[]
[null,"401s"]
[]
[null,"Page Error found - Unauthorized Request - 401 Response Code"]
[null,"Total Count: 0"]
[]
[null,"Issue Severity: Warning"]
[null,"URL","Response Code"]

{"sheet":"403s","index":25,"n_rows":9,"n_cols":3,"rows_kept":9,"cut":false,"hidden":false,"merged":[]}
[]
[]
[null,"403s"]
[]
[null,"Page Error found - Forbidden Request - 403 Response Code"]
[null,"Total Count: 0"]
[]
[null,"Issue Severity: Warning"]
[null,"URL","Response Code"]

{"sheet":"500s","index":26,"n_rows":9,"n_cols":3,"rows_kept":9,"cut":false,"hidden":false,"merged":[]}
[]
[]
[null,"500s"]
[]
[null,"Server Error found - Internal Error - 500 Response Code"]
[null,"Total Count: 0"]
[]
[null,"Issue Severity: Warning"]
[null,"URL","Response Code"]

{"sheet":"501s","index":27,"n_rows":9,"n_cols":3,"rows_kept":9,"cut":false,"hidden":false,"merged":[]}
[]
[]
[null,"501s"]
[]
[null,"Server Error found - Not Implemented - 501 Response Code"]
[null,"Total Count: 0"]
[]
[null,"Issue Severity: Warning"]
[null,"URL","Response Code"]

{"sheet":"503s","index":28,"n_rows":9,"n_cols":3,"rows_kept":9,"cut":false,"hidden":false,"merged":[]}
[]
[]
[null,"503s"]
[]
[null,"Server Error found - Bad Gateway - 503 Response Code"]
[null,"Total Count: 0"]
[]
[null,"Issue Severity: Warning"]
[null,"URL","Response Code"]

{"sheet":"504s","index":29,"n_rows":9,"n_cols":3,"rows_kept":9,"cut":false,"hidden":false,"merged":[]}
[]
[]
[null,"504s"]
[]
[null,"Server Error found - Gateway Timeout - 504 Response Code"]
[null,"Total Count: 0"]
[]
[null,"Issue Severity: Warning"]
[null,"URL","Response Code"]

{"sheet":"505s","index":30,"n_rows":9,"n_cols":3,"rows_kept":9,"cut":false,"hidden":false,"merged":[]}
[]
[]
[null,"505s"]
[]
[null,"Server Error found - HTTP Version Not Supported - 505 Response Code"]
[null,"Total Count: 0"]
[]
[null,"Issue Severity: Warning"]
[null,"URL","Response Code"]

{"sheet":"Multiple Meta Keywords","index":31,"n_rows":9,"n_cols":3,"rows_kept":9,"cut":false,"hidden":false,"merged":[]}
[]
[]
[null,"Multiple Meta Keywords"]
[]
[null,"Pages found with multiple meta keyword tags"]
[null,"Total Count: 0"]
[]
[null,"Issue Severity: Warning"]
[null,"URL","Count"]

{"sheet":"URL Plus Signs","index":32,"n_rows":9,"n_cols":3,"rows_kept":9,"cut":false,"hidden":false,"merged":[]}
[]
[]
[null,"URL Plus Signs"]
[]
[null,"URLs found with two or more plus signs"]
[null,"Total Count: 0"]
[]
[null,"Issue Severity: Info"]
[null,"URL","Separator Count"]

{"sheet":"Deep Directory Depth","index":33,"n_rows":9,"n_cols":3,"rows_kept":9,"cut":false,"hidden":false,"merged":[]}
[]
[]
[null,"Deep Directory Depth"]
[]
[null,"URLs found more than three directories deep"]
[null,"Total Count: 0"]
[]
[null,"Issue Severity: Warning"]
[null,"URL","Directory Depth Count"]

{"sheet":"Missing Meta Keywords","index":34,"n_rows":10,"n_cols":3,"rows_kept":10,"cut":false,"hidden":false,"merged":[]}
[]
[]
[null,"Missing Meta Keywords"]
[]
[null,"Pages found missing a meta keyword tag"]
[null,"Total Count: 1"]
[]
[null,"Issue Severity: Warning"]
[null,"URL","Meta Keywords Tag"]
[null,"http://ec2-184-72-66-227.compute-1.amazonaws.com/","Missing"]

{"sheet":"Short Title Tags","index":35,"n_rows":10,"n_cols":4,"rows_kept":10,"cut":false,"hidden":false,"merged":[]}
[]
[]
[null,"Short Title Tags"]
[]
[null,"Pages found with title tag shorter than 20 characters"]
[null,"Total Count: 1"]
[]
[null,"Issue Severity: Warning"]
[null,"URL","Title Tags","Character Count"]
[null,"http://ec2-184-72-66-227.compute-1.amazonaws.com/","Index page",10]

{"sheet":"Duplicate Meta Keywords","index":36,"n_rows":9,"n_cols":3,"rows_kept":9,"cut":false,"hidden":false,"merged":[]}
[]
[]
[null,"Duplicate Meta Keywords"]
[]
[null,"Pages found with duplicate meta keyword tags"]
[null,"Total Count: 0"]
[]
[null,"Issue Severity: Warning"]
[null,"URL","Duplicate"]

{"sheet":"302s","index":37,"n_rows":9,"n_cols":4,"rows_kept":9,"cut":false,"hidden":false,"merged":[]}
[]
[]
[null,"302s"]
[]
[null,"Redirect Found - Temporary - 302 Response Code"]
[null,"Total Count: 0"]
[]
[null,"Issue Severity: Warning"]
[null,"URL","Redirected to URL","Response Code"]

{"sheet":"URL Capitalization","index":38,"n_rows":9,"n_cols":3,"rows_kept":9,"cut":false,"hidden":false,"merged":[]}
[]
[]
[null,"URL Capitalization"]
[]
[null,"URLs found with capital lettering"]
[null,"Total Count: 0"]
[]
[null,"Issue Severity: Warning"]
[null,"URL","Capital Letter Count"]

{"sheet":"Short Meta Keywords","index":39,"n_rows":9,"n_cols":4,"rows_kept":9,"cut":false,"hidden":false,"merged":[]}
[]
[]
[null,"Short Meta Keywords"]
[]
[null,"Pages found with meta keyword tag shorter than 80 characters"]
[null,"Total Count: 0"]
[]
[null,"Issue Severity: Info"]
[null,"URL","Meta Keywords","Character Count"]

{"sheet":"URL Hyphens","index":40,"n_rows":9,"n_cols":3,"rows_kept":9,"cut":false,"hidden":false,"merged":[]}
[]
[]
[null,"URL Hyphens"]
[]
[null,"URLs found with six or more hyphens"]
[null,"Total Count: 0"]
[]
[null,"Issue Severity: Info"]
[null,"URL","Separator Count"]

{"sheet":"301s","index":41,"n_rows":9,"n_cols":4,"rows_kept":9,"cut":false,"hidden":false,"merged":[]}
[]
[]
[null,"301s"]
[]
[null,"Redirect found - Permanent - 301 Response Code"]
[null,"Total Count: 0"]
[]
[null,"Issue Severity: Info"]
[null,"URL","Redirected to URL","Response Code"]

{"sheet":"Short H1 Tags","index":42,"n_rows":9,"n_cols":4,"rows_kept":9,"cut":false,"hidden":false,"merged":[]}
[]
[]
[null,"Short H1 Tags"]
[]
[null,"Pages found with H1 tag shorter than 15 characters"]
[null,"Total Count: 0"]
[]
[null,"Issue Severity: Info"]
[null,"URL","H1 Tags","Character Count"]

{"sheet":"Long H1 Tags","index":43,"n_rows":9,"n_cols":4,"rows_kept":9,"cut":false,"hidden":false,"merged":[]}
[]
[]
[null,"Long H1 Tags"]
[]
[null,"Pages found with H1 tag longer than 75 characters"]
[null,"Total Count: 0"]
[]
[null,"Issue Severity: Info"]
[null,"URL","H1 Tags","Character Count"]

{"sheet":"URL Underscores","index":44,"n_rows":9,"n_cols":3,"rows_kept":9,"cut":false,"hidden":false,"merged":[]}
[]
[]
[null,"URL Underscores"]
[]
[null,"URLs found with six or more underscores"]
[null,"Total Count: 0"]
[]
[null,"Issue Severity: Info"]
[null,"URL","Separator Count"]

{"sheet":"Remaining Urls_1","index":45,"n_rows":9,"n_cols":11,"rows_kept":9,"cut":false,"hidden":false,"merged":[]}
[]
[]
[null,"Remaining Urls_1"]
[]
[null,"URLs without issues"]
[null,"Total Count: 0"]
[]
[]
[null,"PageID","URL","Title","Meta Description","Meta Keyword","H1","Page Size","Response Code","Response Time","Comments"]

{"sheet":"Spidered Urls_1","index":46,"n_rows":9,"n_cols":11,"rows_kept":9,"cut":false,"hidden":false,"merged":[]}
[]
[]
[null,"Spidered Urls_1"]
[]
[null,"Spidered URLs (raw data)"]
[null,"Total Count: 1"]
[]
[]
[null,"PageID","URL","Title","Meta Description","Meta Keyword","H1","Page Size","Response Code","Response Time","Comments"]

{"sheet":"Report Data","index":47,"n_rows":100,"n_cols":26,"rows_kept":100,"cut":false,"hidden":true,"merged":[[6,10,6,12],[11,10,11,11]]}
[]
[]
[null,"User Agent:","Mozilla/5.0+(compatible;+Googlebot/2.1;++http://www.google.com/bot.html)"]
[]
[]
[]
[null,null,null,null,null,null,null,null,null,null,"Issues / Non-Issues",null,null,null,"Severity","%"]
[null,"Site Architecture Analysis Summary",null,null,null,null,null,null,null,null,"Issues",{"$f":"L10-L9","v":-6878},{"$f":"L8/L10","v":{"$error":"#DIV/0!"}},null,"Critical",{"$f":"Summary!G9/Summary!$G$12","v":{"$error":"#DIV/0!"}}]
[null,null,null,null,null,null,null,null,null,null,"Non-Issues (\"Remaining Urls\")",0,{"$f":"L9/L10","v":{"$error":"#DIV/0!"}},null,"Warning",{"$f":"Summary!G10/Summary!$G$12","v":{"$error":"#DIV/0!"}}]
[null,null,null,null,null,null,null,null,null,null,"Spidered (\"Spidered Urls\")",0,null,null,"Info",{"$f":"Summary!G11/Summary!$G$12","v":{"$error":"#DIV/0!"}}]
[]
[null,"Short Desc","Long Desc","Number","Priority",null,null,null,null,null,"Issues Only",null,null,null,"CRITICAL",null,"WARNING",null,"INFO"]
[null,"Spidered Urls_1","Spidered URLs (raw data)",1,"",null,null,null,null,null,"Spidered Urls_1",1,null,null,"Missing Meta Description",null,"Missing Meta Keywords"]
[null,"Remaining Urls_1","Remaining Urls_1",0,"",null,null,null,null,null,"Remaining Urls_1",0,null,null,"Missing Meta Description",null,"Short Title Tags"]
[null,"Missing Meta Keywords","Pages found missing a meta keyword tag",1,"Warning",null,null,null,null,null,"Missing Meta Keywords",1,null,null,"Missing Meta Description",null,"Short Title Tags"]
[null,"Short Title Tags","Pages found with title tag shorter than 20 characters",1,"Warning",null,null,null,null,null,"Short Title Tags",1,null,null,"Missing Meta Description",null,"Short Title Tags"]
[null,"Missing Meta Description","Pages found missing a meta description tag",1,"Critical",null,null,null,null,null,"Missing Meta Description",1,null,null,"Missing Meta Description",null,"Short Title Tags"]
[]
[]
[]
[]
[]
[]
[]
[]
[]
[]
[]
[]
[]
[]
[]
[]
[]
[]
[]
[]
[]
[]
[]
[]
[]
[]
[]
[]
[]
[]
[]
[]
[]
[]
[]
[]
[]
[]
[]
[]
[]
[]
[]
[]
[]
[]
[]
[]
[]
[]
[]
[]
[]
[]
[]
[]
[]
[]
[]
[]
[]
[]
[]
[]
[]
[]
[]
[]
[]
[]
[]
[]
[]
[]
[]
[]
[]
[]
[]
[]
[]
[]
[null,null,null,null,null,null,null,null,null,null,null,null,null,null,null,null,null,null,null,null,null,null,null,null,null,true]